fUST/lending_fUST_20260529
["ID","MTS","AMOUNT","RATE_DAILY","PERIOD"]
[423254354,1779999040000,-500.0,9.586e-05,2]
[423254353,1779999040000,-163.42,9.586e-05,2]
[423254350,1779999040000,-500.0,9.585e-05,2]
[423254351,1779999040000,-489.82,9.585e-05,2]
[423254349,1779999040000,-295.0916403,9.356e-05,2]
[423254356,1779999040000,-682.14,9.629e-05,2]
[423254367,1779999040000,-500.0,9.629e-05,2]
[423254366,1779999040000,-1239.29,9.629e-05,2]
[423254368,1779999040000,-500.0,9.629e-05,2]
[423254355,1779999040000,-500.0,9.586e-05,2]
[423254357,1779999040000,-500.0,9.629e-05,2]
[423254358,1779999040000,-500.0,9.629e-05,2]
[423254376,1779999040000,-500.0,9.63e-05,2]
[423254359,1779999040000,-500.0,9.629e-05,2]
[423254365,1779999040000,-5682.99,9.629e-05,2]
[423254364,1779999040000,-500.0,9.629e-05,2]
[423254362,1779999040000,-764.5,9.629e-05,2]
[423254370,1779999040000,-500.0,9.63e-05,2]
[423254379,1779999040000,-1022.95,9.63e-05,2]
[423254369,1779999040000,-500.0,9.63e-05,2]
[423254382,1779999040000,-178.16,9.63e-05,2]
[423254381,1779999040000,-500.0,9.63e-05,2]
[423254380,1779999040000,-500.0,9.63e-05,2]
[423254372,1779999040000,-500.0,9.63e-05,2]
[423254374,1779999040000,-500.0,9.63e-05,2]
[423254371,1779999040000,-620.7,9.63e-05,2]
[423254377,1779999040000,-500.0,9.63e-05,2]
[423254360,1779999040000,-500.0,9.629e-05,2]
[423254424,1779999040000,-500.0,9.904e-05,2]
[423254418,1779999040000,-500.0,9.903e-05,2]
[423254420,1779999040000,-500.0,9.904e-05,2]
[423254456,1779999040000,-1239.29,0.00010177,2]
[423254455,1779999040000,-5682.99,0.00010177,2]
[423254457,1779999040000,-500.0,0.00010177,2]
[423254467,1779999040000,-253.62,0.00010178,2]
[423254458,1779999040000,-500.0,0.00010177,2]
[423254466,1779999040000,-500.0,0.00010178,2]
[423254462,1779999040000,-596.94,0.00010178,2]
[423254464,1779999040000,-500.0,0.00010178,2]
[423254461,1779999040000,-620.7,0.00010178,2]
[423254459,1779999040000,-500.0,0.00010178,2]
[423254460,1779999040000,-500.0,0.00010178,2]
[423254463,1779999040000,-529.24,0.00010178,2]
[423254468,1779999040000,-1022.95,0.00010178,2]
[423254451,1779999040000,-500.0,0.00010177,2]
[423254470,1779999040000,-500.0,0.00010178,2]
[423254472,1779999040000,-500.0,0.00010178,2]
[423254475,1779999040000,-1329.68,0.00010178,2]
[423254474,1779999040000,-500.0,0.00010178,2]
[423254477,1779999040000,-500.0,0.00010178,2]
[423254476,1779999040000,-500.0,0.00010178,2]
[423254478,1779999040000,-178.8578,0.00010178,2]
[423254480,1779999040000,-500.0,0.00010178,2]
[423254479,1779999040000,-500.0,0.00010178,2]
[423254481,1779999040000,-500.0,0.00010178,2]
[423254482,1779999040000,-500.0,0.00010178,2]
[423254484,1779999040000,-943.70096461,0.00010407,2]
[423254483,1779999040000,-171.14055075,0.00010407,2]
[423254423,1779999040000,-500.0,9.904e-05,2]
[423254469,1779999040000,-500.0,0.00010178,2]
[423254450,1779999040000,-500.0,0.00010177,2]
[423254465,1779999040000,-500.0,0.00010178,2]
[423254454,1779999040000,-500.0,0.00010177,2]
[423254419,1779999040000,-500.0,9.904e-05,2]
[423254449,1779999040000,-500.0,0.00010177,2]
[423254417,1779999040000,-500.0,9.903e-05,2]
[423254421,1779999040000,-620.7,9.904e-05,2]
[423254426,1779999040000,-500.0,9.904e-05,2]
[423254425,1779999040000,-500.0,9.904e-05,2]
[423254428,1779999040000,-1022.95,9.904e-05,2]
[423254439,1779999040000,-500.0,9.904e-05,2]
[423254440,1779999040000,-500.0,9.904e-05,2]
[423254430,1779999040000,-500.0,9.904e-05,2]
[423254435,1779999040000,-500.0,9.904e-05,2]
[423254427,1779999040000,-500.0,9.904e-05,2]
[423254434,1779999040000,-500.0,9.904e-05,2]
[423254429,1779999040000,-500.0,9.904e-05,2]
[423254431,1779999040000,-500.0,9.904e-05,2]
[423254438,1779999040000,-423.84996925,9.904e-05,2]
[423254446,1779999040000,-151.73,0.00010134,2]
[423254453,1779999040000,-764.5,0.00010177,2]
[423254433,1779999040000,-1329.68,9.904e-05,2]
[423254452,1779999040000,-968.65,0.00010177,2]
[423254445,1779999040000,-970.7637,0.00010133,2]
[423254447,1779999040000,-682.14,0.00010177,2]
[423254442,1779999040000,-2117.15876986,9.994e-05,2]
[423254448,1779999040000,-500.0,0.00010177,2]
[423254444,1779999040000,-500.0,0.00010133,2]
[423254441,1779999040000,-500.0,9.904e-05,2]
[423254437,1779999040000,-500.0,9.904e-05,2]
[423254436,1779999040000,-291.02,9.904e-05,2]
[423254432,1779999040000,-500.0,9.904e-05,2]
[423254443,1779999040000,-197.22497578,0.00010028,2]
[423254524,1779999041000,-968.65,0.00010725,2]
[423254529,1779999041000,-588.36,0.00010725,2]
[423254525,1779999041000,-764.5,0.00010725,2]
[423254528,1779999041000,-1239.29,0.00010725,2]
[423254523,1779999041000,-500.0,0.00010725,2]
[423254527,1779999041000,-5682.99,0.00010725,2]
[423254519,1779999041000,-682.14,0.00010725,2]
[423254531,1779999041000,-500.0,0.00010726,2]
[423254530,1779999041000,-500.0,0.00010725,2]
[423254521,1779999041000,-379.58503571,0.00010725,2]
[423254532,1779999041000,-620.7,0.00010726,2]
[423254526,1779999041000,-500.0,0.00010725,2]
[423254522,1779999041000,-500.0,0.00010725,2]
[423254535,1779999041000,-500.0,0.00010726,2]
[423254549,1779999041000,-500.0,0.00010958,2]
[423254537,1779999041000,-500.0,0.00010726,2]
[423254543,1779999041000,-500.0,0.00010726,2]
[423254536,1779999041000,-1022.95,0.00010726,2]
[423254540,1779999041000,-500.0,0.00010726,2]
[423254539,1779999041000,-500.0,0.00010726,2]
[423254544,1779999041000,-500.0,0.00010726,2]
[423254541,1779999041000,-1329.68,0.00010726,2]
[423254534,1779999041000,-500.0,0.00010726,2]
[423254542,1779999041000,-500.0,0.00010726,2]
[423254551,1779999041000,-500.0,0.00010958,4]
[423254538,1779999041000,-500.0,0.00010726,2]
[423254545,1779999041000,-500.0,0.00010726,2]
[423254546,1779999041000,-500.0,0.00010726,2]
[423254520,1779999041000,-500.0,0.00010725,2]
[423254533,1779999041000,-500.0,0.00010726,2]
[423254511,1779999041000,-466.21563775,0.00010452,2]
[423254491,1779999041000,-968.65,0.00010451,2]
[423254507,1779999041000,-500.0,0.00010452,2]
[423254490,1779999041000,-500.0,0.00010451,2]
[423254487,1779999041000,-500.0,0.00010451,2]
[423254485,1779999041000,-27.06273539,0.00010407,2]
[423254486,1779999041000,-682.14,0.00010451,2]
[423254488,1779999041000,-500.0,0.00010451,2]
[423254489,1779999041000,-500.0,0.00010451,2]
[423254492,1779999041000,-764.5,0.00010451,2]
[423254495,1779999041000,-1239.29,0.00010451,2]
[423254493,1779999041000,-500.0,0.00010451,2]
[423254494,1779999041000,-5682.99,0.00010451,2]
[423254503,1779999041000,-500.0,0.00010452,2]
[423254504,1779999041000,-1022.95,0.00010452,2]
[423254497,1779999041000,-500.0,0.00010451,2]
[423254499,1779999041000,-288.00184005,0.00010452,2]
[423254515,1779999041000,-500.0,0.00010452,2]
[423254501,1779999041000,-500.0,0.00010452,2]
[423254500,1779999041000,-620.7,0.00010452,2]
[423254496,1779999041000,-500.0,0.00010451,2]
[423254502,1779999041000,-500.0,0.00010452,2]
[423254506,1779999041000,-500.0,0.00010452,2]
[423254516,1779999041000,-167.0035031,0.00010604,2]
[423254517,1779999041000,-970.7637,0.00010681,2]
[423254505,1779999041000,-500.0,0.00010452,2]
[423254518,1779999041000,-250.0,0.00010694,2]
[423254508,1779999041000,-500.0,0.00010452,2]
[423254514,1779999041000,-500.0,0.00010452,2]
[423254509,1779999041000,-1329.68,0.00010452,2]
[423254512,1779999041000,-500.0,0.00010452,2]
[423254510,1779999041000,-500.0,0.00010452,2]
[423254513,1779999041000,-500.0,0.00010452,2]
[423254498,1779999041000,-500.0,0.00010452,2]
[423254547,1779999041000,-461.72283662,0.00010942,2]
[423254555,1779999041000,-500.0,0.00010999,2]
[423254556,1779999041000,-500.0,0.00010999,2]
[423254594,1779999041000,-500.0,0.00011274,2]
[423254584,1779999041000,-764.5,0.00011273,2]
[423254587,1779999041000,-1239.29,0.00011273,2]
[423254595,1779999041000,-500.0,0.00011274,2]
[423254590,1779999041000,-500.0,0.00011274,2]
[423254593,1779999041000,-500.0,0.00011274,2]
[423254591,1779999041000,-500.0,0.00011274,2]
[423254588,1779999041000,-620.7,0.00011274,2]
[423254592,1779999041000,-1022.95,0.00011274,2]
[423254589,1779999041000,-500.0,0.00011274,2]
[423254598,1779999041000,-321.4546804,0.00011274,2]
[423254608,1779999041000,-968.65,0.00011547,2]
[423254597,1779999041000,-1329.68,0.00011274,2]
[423254610,1779999041000,-500.0,0.00011547,2]
[423254586,1779999041000,-5682.99,0.00011273,2]
[423254599,1779999041000,-500.0,0.00011274,2]
[423254600,1779999041000,-500.0,0.00011274,2]
[423254604,1779999041000,-682.14,0.00011547,2]
[423254605,1779999041000,-500.0,0.00011547,2]
[423254603,1779999041000,-970.7637,0.00011503,2]
[423254606,1779999041000,-500.0,0.00011547,2]
[423254607,1779999041000,-500.0,0.00011547,2]
[423254601,1779999041000,-500.0,0.00011274,2]
[423254602,1779999041000,-500.0,0.00011274,2]
[423254612,1779999041000,-1239.29,0.00011547,2]
[423254614,1779999041000,-265.1,0.00011548,2]
[423254611,1779999041000,-5682.99,0.00011547,2]
[423254613,1779999041000,-620.7,0.00011548,2]
[423254615,1779999041000,-500.0,0.00011548,2]
[423254552,1779999041000,-15000.0,0.00010959,2]
[423254609,1779999041000,-764.5,0.00011547,2]
[423254596,1779999041000,-500.0,0.00011274,2]
[423254558,1779999041000,-764.5,0.00010999,2]
[423254583,1779999041000,-968.65,0.00011273,2]
[423254550,1779999041000,-500.0,0.00010958,3]
[423254554,1779999041000,-500.0,0.00010999,2]
[423254553,1779999041000,-682.14,0.00010999,2]
[423254585,1779999041000,-500.0,0.00011273,2]
[423254568,1779999041000,-500.0,0.00011,2]
[423254557,1779999041000,-968.65,0.00010999,2]
[423254559,1779999041000,-500.0,0.00010999,2]
[423254569,1779999041000,-500.0,0.00011,2]
[423254562,1779999041000,-500.0,0.00011,2]
[423254566,1779999041000,-500.0,0.00011,2]
[423254563,1779999041000,-620.7,0.00011,2]
[423254564,1779999041000,-500.0,0.00011,2]
[423254560,1779999041000,-5682.99,0.00010999,2]
[423254565,1779999041000,-500.0,0.00011,2]
[423254548,1779999041000,-970.7637,0.00010955,2]
[423254567,1779999041000,-1022.95,0.00011,2]
[423254579,1779999041000,-682.14,0.00011273,2]
[423254580,1779999041000,-500.0,0.00011273,2]
[423254577,1779999041000,-500.0,0.00011,2]
[423254576,1779999041000,-500.0,0.00011,2]
[423254578,1779999041000,-970.7637,0.00011229,2]
[423254575,1779999041000,-500.0,0.00011,2]
[423254561,1779999041000,-1239.29,0.00010999,2]
[423254581,1779999041000,-500.0,0.00011273,2]
[423254574,1779999041000,-500.0,0.00011,2]
[423254572,1779999041000,-1329.68,0.00011,2]
[423254573,1779999041000,-500.0,0.00011,2]
[423254571,1779999041000,-500.0,0.00011,2]
[423254570,1779999041000,-500.0,0.00011,2]
[423254582,1779999041000,-500.0,0.00011273,2]
[423254667,1779999042000,-1239.29,0.00012095,2]
[423254658,1779999042000,-872.4666,0.00012051,2]
[423254661,1779999042000,-500.0,0.00012095,2]
[423254655,1779999042000,-167.0,0.00011918,3]
[423254659,1779999042000,-682.14,0.00012095,2]
[423254662,1779999042000,-500.0,0.00012095,2]
[423254654,1779999042000,-500.0,0.00011822,2]
[423254656,1779999042000,-151.09,0.00012,2]
[423254665,1779999042000,-500.0,0.00012095,2]
[423254664,1779999042000,-764.5,0.00012095,2]
[423254652,1779999042000,-500.0,0.00011822,2]
[423254677,1779999042000,-391.57267503,0.00012142,2]
[423254660,1779999042000,-500.0,0.00012095,2]
[423254678,1779999042000,-1062.2241075,0.00012307,2]
[423254669,1779999042000,-500.0,0.00012096,2]
[423254668,1779999042000,-620.7,0.00012096,2]
[423254674,1779999042000,-500.0,0.00012096,2]
[423254672,1779999042000,-500.0,0.00012096,2]
[423254671,1779999042000,-500.0,0.00012096,2]
[423254676,1779999042000,-500.0,0.00012096,2]
[423254675,1779999042000,-322.253851,0.00012096,2]
[423254663,1779999042000,-968.65,0.00012095,2]
[423254673,1779999042000,-1329.68,0.00012096,2]
[423254670,1779999042000,-1022.95,0.00012096,2]
[423254666,1779999042000,-5682.99,0.00012095,2]
[423254680,1779999042000,-500.0,0.00012369,2]
[423254682,1779999042000,-500.0,0.00012369,2]
[423254683,1779999042000,-968.65,0.00012369,2]
[423254684,1779999042000,-764.5,0.00012369,2]
[423254679,1779999042000,-682.14,0.00012369,2]
[423254653,1779999042000,-500.0,0.00011822,2]
[423254640,1779999042000,-478.65931486,0.00011822,2]
[423254649,1779999042000,-1329.68,0.00011822,2]
[423254624,1779999042000,-500.0,0.00011548,2]
[423254623,1779999042000,-500.0,0.00011548,2]
[423254622,1779999042000,-1329.68,0.00011548,2]
[423254619,1779999042000,-500.0,0.00011548,2]
[423254621,1779999042000,-500.0,0.00011548,2]
[423254617,1779999042000,-1022.95,0.00011548,2]
[423254616,1779999042000,-500.0,0.00011548,2]
[423254618,1779999042000,-500.0,0.00011548,2]
[423254620,1779999042000,-500.0,0.00011548,2]
[423254626,1779999042000,-500.0,0.00011548,2]
[423254625,1779999042000,-500.0,0.00011548,2]
[423254631,1779999042000,-500.0,0.00011821,2]
[423254629,1779999042000,-682.14,0.00011821,2]
[423254632,1779999042000,-500.0,0.00011821,2]
[423254648,1779999042000,-500.0,0.00011822,2]
[423254627,1779999042000,-500.0,0.00011755,5]
[423254633,1779999042000,-968.65,0.00011821,2]
[423254630,1779999042000,-500.0,0.00011821,2]
[423254634,1779999042000,-764.5,0.00011821,2]
[423254636,1779999042000,-5682.99,0.00011821,2]
[423254637,1779999042000,-1239.29,0.00011821,2]
[423254638,1779999042000,-620.7,0.00011822,2]
[423254639,1779999042000,-500.0,0.00011822,2]
[423254645,1779999042000,-181.49511448,0.00011822,2]
[423254692,1779999042000,-500.0,0.0001237,2]
[423254635,1779999042000,-500.0,0.00011821,2]
[423254641,1779999042000,-1022.95,0.00011822,2]
[423254647,1779999042000,-449.37126821,0.00011822,2]
[423254651,1779999042000,-417.16982352,0.00011822,2]
[423254643,1779999042000,-500.0,0.00011822,2]
[423254628,1779999042000,-970.7637,0.00011777,2]
[423254694,1779999042000,-1329.68,0.0001237,2]
[423254657,1779999042000,-227.31014158,0.00012028,2]
[423254688,1779999042000,-620.7,0.0001237,2]
[423254739,1779999042000,-199.21334781,0.00012917,2]
[423254735,1779999042000,-682.14,0.00012917,2]
[423254743,1779999042000,-764.5,0.00012917,2]
[423254745,1779999042000,-500.0,0.00012917,2]
[423254749,1779999042000,-1239.29,0.00012917,2]
[423254747,1779999042000,-5682.99,0.00012917,2]
[423254757,1779999042000,-500.0,0.00012918,2]
[423254753,1779999042000,-500.0,0.00012918,2]
[423254759,1779999042000,-1329.68,0.00012918,2]
[423254751,1779999042000,-620.7,0.00012918,2]
[423254755,1779999042000,-1022.95,0.00012918,2]
[423254761,1779999042000,-390.14818152,0.00012944,2]
[423254765,1779999042000,-8549.52854899,0.00013,2]
[423254767,1779999042000,-8549.52854899,0.000131,2]
[423254741,1779999042000,-968.65,0.00012917,2]
[423254769,1779999042000,-500.0,0.00013191,2]
[423254771,1779999042000,-968.65,0.00013191,2]
[423254772,1779999042000,-764.5,0.00013191,2]
[423254763,1779999042000,-704.83081506,0.00012987,2]
[423254779,1779999042000,-500.0,0.00013192,2]
[423254781,1779999042000,-500.0,0.00013192,2]
[423254776,1779999042000,-5682.99,0.00013191,2]
[423254774,1779999042000,-500.0,0.00013191,2]
[423254780,1779999042000,-1022.95,0.00013192,2]
[423254778,1779999042000,-620.7,0.00013192,2]
[423254777,1779999042000,-1239.29,0.00013191,2]
[423254783,1779999042000,-279.50619703,0.00013233,14]
[423254686,1779999042000,-5682.99,0.00012369,2]
[423254784,1779999042000,-8549.52854899,0.000133,2]
[423254785,1779999042000,-632.93314454,0.00013399,2]
[423254768,1779999042000,-682.14,0.00013191,2]
[423254737,1779999042000,-500.0,0.00012917,2]
[423254782,1779999042000,-1329.68,0.00013192,2]
[423254719,1779999042000,-500.0,0.00012644,2]
[423254729,1779999042000,-160.0,0.00012879,2]
[423254687,1779999042000,-1239.29,0.00012369,2]
[423254689,1779999042000,-500.0,0.0001237,2]
[423254681,1779999042000,-500.0,0.00012369,2]
[423254690,1779999042000,-1022.95,0.0001237,2]
[423254685,1779999042000,-500.0,0.00012369,2]
[423254707,1779999042000,-316.15,0.00012643,2]
[423254706,1779999042000,-500.0,0.00012643,2]
[423254708,1779999042000,-500.0,0.00012643,2]
[423254695,1779999042000,-500.0,0.0001237,2]
[423254697,1779999042000,-460.9584314,0.0001237,2]
[423254712,1779999042000,-5682.99,0.00012643,2]
[423254698,1779999042000,-167.0035031,0.000125,2]
[423254709,1779999042000,-968.65,0.00012643,2]
[423254710,1779999042000,-764.5,0.00012643,2]
[423254693,1779999042000,-500.0,0.0001237,2]
[423254711,1779999042000,-500.0,0.00012643,2]
[423254717,1779999042000,-1022.95,0.00012644,2]
[423254727,1779999042000,-767.06633829,0.00012879,2]
[423254723,1779999042000,-1329.68,0.00012644,2]
[423254733,1779999042000,-8549.52854899,0.000129,2]
[423254721,1779999042000,-628.62133383,0.00012644,2]
[423254701,1779999042000,-279.50619703,0.00012603,2]
[423254726,1779999042000,-279.50619703,0.00012855,7]
[423254731,1779999042000,-160.0,0.00012879,2]
[423254725,1779999042000,-380.99274821,0.00012644,2]
[423254713,1779999042000,-1239.29,0.00012643,2]
[423254714,1779999042000,-620.7,0.00012644,2]
[423254704,1779999042000,-682.14,0.00012643,2]
[423254702,1779999042000,-461.72283662,0.00012628,2]
[423254715,1779999042000,-500.0,0.00012644,2]
[423254826,1779999043000,-500.0,0.00013399,2]
[423254828,1779999043000,-500.0,0.00013399,2]
[423254824,1779999043000,-500.0,0.00013399,2]
[423254827,1779999043000,-500.0,0.00013399,2]
[423254822,1779999043000,-500.0,0.00013399,2]
[423254829,1779999043000,-500.0,0.00013399,2]
[423254825,1779999043000,-562.13101356,0.00013399,2]
[423254821,1779999043000,-500.0,0.00013399,2]
[423254818,1779999043000,-226.41364325,0.00013399,2]
[423254820,1779999043000,-500.0,0.00013399,2]
[423254819,1779999043000,-500.0,0.00013399,2]
[423254823,1779999043000,-500.0,0.00013399,2]
[423254832,1779999043000,-500.0,0.00013399,2]
[423254837,1779999043000,-500.0,0.00013399,2]
[423254842,1779999043000,-500.0,0.00013399,2]
[423254843,1779999043000,-600.27529481,0.00013399,2]
[423254838,1779999043000,-500.0,0.00013399,2]
[423254834,1779999043000,-500.0,0.00013399,2]
[423254835,1779999043000,-500.0,0.00013399,2]
[423254836,1779999043000,-500.0,0.00013399,2]
[423254833,1779999043000,-500.0,0.00013399,2]
[423254839,1779999043000,-500.0,0.00013399,2]
[423254831,1779999043000,-500.0,0.00013399,2]
[423254841,1779999043000,-500.0,0.00013399,2]
[423254840,1779999043000,-500.0,0.00013399,2]
[423254807,1779999043000,-500.0,0.00013399,2]
[423254845,1779999043000,-500.0,0.00013399,2]
[423254844,1779999043000,-500.0,0.00013399,2]
[423254813,1779999043000,-500.0,0.00013399,2]
[423254797,1779999043000,-500.0,0.00013399,2]
[423254809,1779999043000,-500.0,0.00013399,2]
[423254848,1779999043000,-304.96,0.00013399,2]
[423254795,1779999043000,-500.0,0.00013399,2]
[423254793,1779999043000,-500.0,0.00013399,2]
[423254794,1779999043000,-500.0,0.00013399,2]
[423254791,1779999043000,-392.05618562,0.00013399,2]
[423254787,1779999043000,-500.0,0.00013399,2]
[423254788,1779999043000,-500.0,0.00013399,2]
[423254792,1779999043000,-500.0,0.00013399,2]
[423254790,1779999043000,-500.0,0.00013399,2]
[423254789,1779999043000,-500.0,0.00013399,2]
[423254786,1779999043000,-500.0,0.00013399,2]
[423254796,1779999043000,-500.0,0.00013399,2]
[423254800,1779999043000,-500.0,0.00013399,2]
[423254814,1779999043000,-500.0,0.00013399,2]
[423254798,1779999043000,-500.0,0.00013399,2]
[423254801,1779999043000,-500.0,0.00013399,2]
[423254802,1779999043000,-500.0,0.00013399,2]
[423254799,1779999043000,-500.0,0.00013399,2]
[423254803,1779999043000,-500.0,0.00013399,2]
[423254806,1779999043000,-500.0,0.00013399,2]
[423254817,1779999043000,-500.0,0.00013399,2]
[423254816,1779999043000,-500.0,0.00013399,2]
[423254805,1779999043000,-500.0,0.00013399,2]
[423254811,1779999043000,-500.0,0.00013399,2]
[423254815,1779999043000,-500.0,0.00013399,2]
[423254808,1779999043000,-500.0,0.00013399,2]
[423254812,1779999043000,-500.0,0.00013399,2]
[423254810,1779999043000,-427.0,0.00013399,2]
[423254804,1779999043000,-500.0,0.00013399,2]
[423254849,1779999043000,-500.0,0.00013399,2]
[423254887,1779999043000,-500.0,0.00013673,2]
[423254847,1779999043000,-500.0,0.00013399,2]
[423254881,1779999043000,-500.0,0.00013673,2]
[423254894,1779999043000,-185.28,0.00013673,2]
[423254883,1779999043000,-500.0,0.00013673,2]
[423254895,1779999043000,-500.0,0.00013673,2]
[423254896,1779999043000,-516.94,0.00013673,2]
[423254893,1779999043000,-500.0,0.00013673,2]
[423254897,1779999043000,-500.0,0.00013673,2]
[423254884,1779999043000,-500.0,0.00013673,2]
[423254886,1779999043000,-609.96,0.00013673,2]
[423254885,1779999043000,-500.0,0.00013673,2]
[423254889,1779999043000,-500.0,0.00013673,2]
[423254892,1779999043000,-500.0,0.00013673,2]
[423254891,1779999043000,-500.0,0.00013673,2]
[423254876,1779999043000,-500.0,0.00013673,2]
[423254899,1779999043000,-500.0,0.00013673,2]
[423254900,1779999043000,-500.0,0.00013673,2]
[423254901,1779999043000,-500.0,0.00013673,2]
[423254903,1779999043000,-500.0,0.00013673,2]
[423254904,1779999043000,-252.34563867,0.00013673,2]
[423254902,1779999043000,-500.0,0.00013673,2]
[423254905,1779999043000,-500.0,0.00013673,2]
[423254907,1779999043000,-270.94,0.00013673,2]
[423254908,1779999043000,-487.82,0.00013673,2]
[423254906,1779999043000,-500.0,0.00013673,2]
[423254909,1779999043000,-500.0,0.00013673,2]
[423254910,1779999043000,-500.0,0.00013673,2]
[423254851,1779999043000,-500.0,0.00013399,2]
[423254912,1779999043000,-234.09,0.00013673,2]
[423254898,1779999043000,-500.0,0.00013673,2]
[423254880,1779999043000,-344.42134783,0.00013673,2]
[423254911,1779999043000,-500.0,0.00013673,2]
[423254874,1779999043000,-531.42,0.00013673,2]
[423254882,1779999043000,-589.08701475,0.00013673,2]
[423254850,1779999043000,-500.0,0.00013399,2]
[423254854,1779999043000,-500.0,0.00013465,2]
[423254853,1779999043000,-682.14,0.00013465,2]
[423254846,1779999043000,-500.0,0.00013399,2]
[423254857,1779999043000,-500.0,0.00013465,2]
[423254855,1779999043000,-968.65,0.00013465,2]
[423254856,1779999043000,-764.5,0.00013465,2]
[423254859,1779999043000,-1239.29,0.00013465,2]
[423254870,1779999043000,-617.7,0.00013673,2]
[423254869,1779999043000,-500.42464554,0.00013673,2]
[423254860,1779999043000,-620.7,0.00013466,2]
[423254864,1779999043000,-1329.68,0.00013466,2]
[423254858,1779999043000,-5682.99,0.00013465,2]
[423254852,1779999043000,-8549.52854899,0.000134,2]
[423254861,1779999043000,-500.0,0.00013466,2]
[423254879,1779999043000,-500.0,0.00013673,2]
[423254877,1779999043000,-500.0,0.00013673,2]
[423254878,1779999043000,-500.0,0.00013673,2]
[423254873,1779999043000,-500.0,0.00013673,2]
[423254875,1779999043000,-500.0,0.00013673,2]
[423254866,1779999043000,-195.36483845,0.00013482,2]
[423254872,1779999043000,-500.0,0.00013673,2]
[423254867,1779999043000,-8549.52854899,0.000135,2]
[423254863,1779999043000,-335.1,0.00013466,2]
[423254862,1779999043000,-1022.95,0.00013466,2]
[423254865,1779999043000,-515.2851732,0.00013482,2]
[423254868,1779999043000,-500.0,0.00013673,2]
[423254871,1779999043000,-500.0,0.00013673,2]
[423254954,1779999044000,-367.26512887,0.00013698,2]
[423254951,1779999044000,-500.0,0.00013698,2]
[423254948,1779999044000,-500.0,0.00013698,2]
[423254949,1779999044000,-500.0,0.00013698,2]
[423254946,1779999044000,-500.0,0.00013698,2]
[423254952,1779999044000,-500.0,0.00013698,2]
[423254956,1779999044000,-8549.52854899,0.000137,2]
[423254945,1779999044000,-500.0,0.00013698,2]
[423254950,1779999044000,-500.0,0.00013698,2]
[423254942,1779999044000,-500.0,0.00013698,2]
[423254947,1779999044000,-500.0,0.00013698,2]
[423254953,1779999044000,-500.0,0.00013698,2]
[423254968,1779999044000,-8549.52854899,0.000138,2]
[423254957,1779999044000,-682.14,0.00013739,2]
[423254959,1779999044000,-968.65,0.00013739,2]
[423254961,1779999044000,-500.0,0.00013739,2]
[423254960,1779999044000,-764.5,0.00013739,2]
[423254963,1779999044000,-1239.29,0.00013739,2]
[423254966,1779999044000,-1022.95,0.0001374,2]
[423254958,1779999044000,-500.0,0.00013739,2]